bitfinex/quotes_BTCUSD_20220111
["timestamp","ask_amount","ask_price","bid_price","bid_amount"]
[1641879148150,0.42,42066.0,42065.0,0.00952774]
[1641879149354,0.42,42066.0,42065.0,0.00552774]
[1641879150151,0.42,42066.0,42065.0,0.00952774]
[1641879151352,0.42,42066.0,42065.0,0.00552774]
[1641879152000,0.42,42066.0,42065.0,0.00952774]
[1641879153300,0.42,42066.0,42065.0,0.00552774]
[1641879154102,0.3119,42067.0,42065.0,0.00952774]
[1641879154301,0.7319,42067.0,42065.0,0.01671551]
[1641879154500,0.7319,42067.0,42066.0,0.00638697]
[1641879154701,0.7319,42067.0,42066.0,0.00610901]
[1641879154900,0.7319,42067.0,42065.0,0.00952774]
[1641879155101,0.7319,42067.0,42065.0,0.00452774]
[1641879155302,0.72771254,42067.0,42065.0,0.00052774]
[1641879156147,0.72771254,42067.0,42065.0,0.00352774]
[1641879156349,0.30771254,42067.0,42065.0,0.00352774]
[1641879156551,0.72771254,42067.0,42065.0,0.00352774]
[1641879156950,0.42,42067.0,42065.0,0.00352774]
[1641879157151,0.00071922,42068.0,42065.0,0.00352774]
[1641879157351,0.42071922,42068.0,42065.0,0.00052774]
[1641879158051,0.42071922,42068.0,42066.0,0.00032763]
[1641879158451,0.00071922,42068.0,42066.0,0.00032763]
[1641879158952,1.00030267,42069.0,42066.0,0.00032763]
[1641879160298,0.99958346,42069.0,42066.0,0.00032763]
[1641879160496,0.57958346,42069.0,42066.0,0.00032763]
[1641879163851,0.57958346,42068.0,42066.0,0.00032763]
[1641879164451,0.57958346,42069.0,42066.0,0.00032763]
[1641879165051,0.57958346,42069.0,42066.0,0.00558783]
[1641879165052,0.58030267,42069.0,42066.0,0.00558783]
[1641879165351,0.28735041,42068.0,42067.0,0.00695409]
[1641879165553,0.28735041,42068.0,42067.0,0.00052774]
[1641879165554,0.91753198,42068.0,42067.0,0.00052774]
[1641879165756,0.821417,42067.0,42064.0,0.0001687]
[1641879165954,0.371416,42064.0,42058.0,0.24]
[1641879166155,0.19990584,42061.0,42058.0,0.24]
[1641879166354,0.57132284,42061.0,42058.0,0.24]
[1641879166555,0.67132284,42061.0,42058.0,0.24]
[1641879167802,1.73033633,42061.0,42058.0,0.24]
[1641879168703,1.63161741,42061.0,42058.0,0.24]
[1641879169808,1.86774028,42061.0,42058.0,0.24]
[1641879170206,1.91504028,42061.0,42058.0,0.24]
[1641879171050,1.3235503,42061.0,42058.0,0.24]
[1641879171653,0.30998208,42059.0,42058.0,0.18352247]
[1641879171850,1.11002988,42059.0,42058.0,0.18352247]
[1641879172249,1.11002988,42059.0,42058.0,0.17852247]
[1641879173152,1.11002988,42059.0,42058.0,0.17889424]
[1641879173552,1.21002988,42059.0,42058.0,0.17889424]
[1641879177004,1.21002988,42059.0,42058.0,0.17389424]
[1641879179548,0.82869908,42059.0,42058.0,0.17389424]
[1641879183503,0.518717,42059.0,42058.0,0.17389424]
[1641879183704,0.418717,42059.0,42058.0,0.17389424]
[1641879184104,0.0473,42059.0,42058.0,0.17389424]
[1641879185549,0.3353999,42059.0,42058.0,0.17389424]
[1641879185750,1.01918225,42059.0,42058.0,0.17389424]
[1641879185951,1.11918225,42059.0,42058.0,0.17389424]
[1641879186351,0.8068169,42059.0,42058.0,0.17389424]
[1641879186953,1.12062283,42059.0,42058.0,0.17389424]
[1641879187152,0.518717,42059.0,42058.0,0.17389424]
[1641879187353,0.471417,42059.0,42058.0,0.17389424]
[1641879187854,0.1,42059.0,42058.0,0.17389424]
[1641879188051,0.371417,42059.0,42058.0,0.17389424]
[1641879188853,0.70772464,42059.0,42058.0,0.17389424]
[1641879189305,0.471417,42059.0,42058.0,0.17389424]
[1641879191606,0.371417,42059.0,42058.0,0.17389424]
[1641879191905,0.00071747,42061.0,42058.0,0.17389424]
[1641879192108,0.00071747,42061.0,42058.0,0.17951545]
[1641879192306,0.00071747,42061.0,42058.0,0.17389424]
[1641879192608,0.00071733,42061.0,42058.0,0.17389424]
[1641879192806,0.00071733,42061.0,42058.0,0.18118373]
[1641879193056,0.00071733,42061.0,42058.0,0.22389424]
[1641879193252,0.00071733,42061.0,42058.0,0.22946957]
[1641879193552,0.371417,42060.0,42058.0,0.17389424]
[1641879194152,0.471417,42060.0,42058.0,0.17389424]
[1641879197200,0.67132284,42060.0,42058.0,0.17389424]
[1641879197596,0.57132284,42060.0,42058.0,0.17389424]
[1641879197797,0.371417,42060.0,42058.0,0.17389424]
[1641879197996,0.471417,42060.0,42058.0,0.17389424]
[1641879198596,0.1,42060.0,42058.0,0.17389424]
[1641879199097,0.317155,42061.0,42058.0,0.17389424]
[1641879199298,0.371417,42060.0,42058.0,0.17389424]
[1641879199699,0.76348193,42059.0,42058.0,0.17389424]
[1641879199898,0.821417,42059.0,42058.0,0.17389424]
[1641879200097,0.921417,42059.0,42058.0,0.17389424]
[1641879200549,1.24586218,42059.0,42058.0,0.17389424]
[1641879200948,0.921417,42059.0,42058.0,0.17389424]
[1641879202049,1.2113655,42059.0,42058.0,0.17389424]
[1641879203552,1.1113655,42059.0,42058.0,0.17389424]
[1641879203951,0.6613655,42059.0,42058.0,0.17389424]
[1641879204802,0.00196171,42061.0,42058.0,0.17389424]
[1641879205001,0.371417,42060.0,42058.0,0.17389424]
[1641879206402,0.76697176,42059.0,42058.0,0.17389424]
[1641879206604,1.13838876,42059.0,42058.0,0.17389424]
[1641879207203,1.46062597,42059.0,42058.0,0.17389424]
[1641879207805,1.56062597,42059.0,42058.0,0.17389424]
[1641879208067,1.10792597,42059.0,42058.0,0.00198573]
[1641879208266,1.10792597,42059.0,42058.0,8.573e-05]
[1641879208965,0.00124096,42054.0,42053.0,0.00049657]
[1641879209166,1.44905396,42054.0,42053.0,0.00049657]
[1641879209468,1.81905159,42054.0,42053.0,0.00049657]
[1641879209666,1.54905396,42054.0,42053.0,0.00049657]
[1641879209865,2.14406211,42054.0,42053.0,0.00049657]
[1641879210465,1.54905396,42054.0,42053.0,0.00049657]
[1641879210666,1.54905396,42054.0,42051.0,0.00049663]
[1641879210865,0.26300986,42053.0,42051.0,0.00049663]
[1641879211069,0.733123,42052.0,42051.0,0.00049663]
[1641879211466,0.833123,42052.0,42051.0,0.00049663]
[1641879211700,0.833123,42052.0,42049.0,0.00049666]
[1641879211906,0.892595,42052.0,42049.0,0.00049666]
[1641879212302,0.578189,42052.0,42049.0,0.00049666]
[1641879212704,0.518717,42052.0,42049.0,0.00049666]
[1641879212901,0.518717,42052.0,42048.0,0.00049668]
[1641879213100,0.518717,42052.0,42051.0,0.00032809]
[1641879215104,0.56992394,42052.0,42051.0,0.00032809]
[1641879218152,0.56992394,42052.0,42049.0,0.24082474]
[1641879218757,0.51992394,42052.0,42049.0,0.24082474]
[1641879218954,0.51992394,42052.0,42049.0,0.24032809]
[1641879220304,0.48992394,42052.0,42049.0,0.24032809]
[1641879221605,0.83483813,42050.0,42049.0,0.24032809]
[1641879221807,1.25475997,42050.0,42049.0,0.24032809]
[1641879222007,1.35475997,42050.0,42049.0,0.24032809]
[1641879222207,0.371417,42049.0,42042.0,0.00198695]
[1641879222408,0.00129167,42044.0,42042.0,0.00198695]
[1641879222606,1.10266936,42043.0,42041.0,0.00198703]
[1641879222807,0.5809973,42043.0,42041.0,0.00198703]
[1641879223057,0.6809973,42043.0,42041.0,0.00198703]
[1641879223861,0.6809973,42043.0,42039.0,0.008405]
[1641879224259,0.47675435,42040.0,42034.0,0.00779733]
[1641879224459,0.0473,42039.0,42032.0,0.33985689]
[1641879224660,0.0473,42038.0,42032.0,0.33907234]
[1641879224860,0.0473,42037.0,42032.0,0.33951742]
[1641879225060,0.0473,42036.0,42032.0,0.33951742]
[1641879225259,0.0473,42036.0,42034.0,0.00659695]
[1641879225459,0.0473,42036.0,42031.0,0.35687216]
[1641879225662,0.0473,42036.0,42032.0,0.35029679]
[1641879225860,0.0473,42036.0,42033.0,0.00746142]
[1641879226060,0.0473,42036.0,42034.0,0.00701621]
[1641879226262,0.0473,42036.0,42034.0,0.0066982]
[1641879226461,0.0473,42036.0,42035.0,0.371681]
[1641879226712,0.0473,42036.0,42033.0,0.00608822]
[1641879226902,0.0473,42036.0,42034.0,0.00762952]
[1641879227203,0.0473,42036.0,42033.0,0.3299591]
[1641879227404,0.4022803,42043.0,42033.0,0.00754029]
[1641879227405,0.0473,42041.0,42033.0,0.00754029]
[1641879227606,0.371681,42040.0,42032.0,0.00058476]
[1641879227803,0.3528422,42039.0,42032.0,0.00058476]
[1641879228004,0.3528422,42039.0,42035.0,0.00029346]
[1641879228205,0.371681,42038.0,42035.0,0.00029346]
[1641879228805,0.3528422,42039.0,42035.0,0.00029346]
[1641879229505,0.05948,42040.0,42035.0,0.00029346]
[1641879229906,0.05948,42040.0,42035.0,0.00087817]
[1641879230556,0.0473,42041.0,42035.0,0.00087817]
[1641879230960,0.0473,42041.0,42035.0,0.00095135]
[1641879231964,0.371681,42040.0,42035.0,0.00095135]
[1641879232160,0.371681,42040.0,42036.0,0.00047717]
[1641879232362,0.059482,42038.0,42036.0,0.00047717]
[1641879232561,0.35794,42037.0,42036.0,0.00047717]
[1641879232960,0.06664739,42038.0,42036.0,0.00047717]
[1641879233162,0.06664739,42038.0,42037.0,0.00029266]
[1641879233362,0.00716539,42038.0,42037.0,0.00029266]
[1641879237710,0.37884639,42038.0,42037.0,0.00029266]
[1641879237956,0.37884639,42038.0,42035.0,0.00078933]
[1641879238155,0.37884639,42038.0,42035.0,0.00079163]
[1641879238956,0.00716539,42038.0,42035.0,0.00079163]
[1641879239356,0.00716539,42038.0,42035.0,0.00029266]
[1641879240563,0.00716539,42038.0,42035.0,0.0072339]
[1641879241807,0.00716539,42038.0,42035.0,0.279366]
[1641879243007,0.00716539,42038.0,42037.0,0.00029266]
[1641879245210,0.595501,42050.0,42037.0,0.0081925]
[1641879245458,0.595501,42050.0,42046.0,0.28085502]
[1641879245459,0.3528422,42049.0,42046.0,0.28085502]
[1641879245658,0.3528422,42049.0,42046.0,0.0834]
[1641879246059,1.29859113,42047.0,42046.0,0.0834]
[1641879246258,2.00937333,42047.0,42037.0,0.00029266]
[1641879246459,0.665481,42046.0,42037.0,0.00029266]
[1641879246661,0.665481,42046.0,42045.0,0.00049352]
[1641879247162,1.16911764,42046.0,42045.0,0.00049352]
[1641879247760,1.16911764,42046.0,42043.0,0.00049356]
[1641879249061,1.16911764,42046.0,42042.0,0.00049357]
[1641879249815,1.47769834,42046.0,42042.0,0.00049357]
[1641879250313,1.47769834,42046.0,42042.0,0.00049362]
[1641879251116,1.16911764,42046.0,42042.0,0.00049362]
[1641879253156,1.16911764,42046.0,42044.0,0.00028987]
[1641879254360,0.87531764,42046.0,42044.0,0.00028987]
[1641879255360,0.471681,42046.0,42044.0,0.00028987]
[1641879255562,0.595501,42049.0,42044.0,0.57718907]
[1641879255762,0.595501,42049.0,42044.0,0.63379523]
[1641879255961,0.595501,42049.0,42044.0,0.29028987]
[1641879256162,0.595501,42049.0,42044.0,0.63696982]
[1641879256361,0.595501,42049.0,42044.0,0.58245376]
[1641879256808,0.5947,42050.0,42044.0,0.58245376]
[1641879257108,0.6947,42050.0,42044.0,0.58931919]
[1641879257308,0.5947,42050.0,42044.0,0.58245376]
[1641879257507,0.5947,42050.0,42044.0,0.63245377]
[1641879257707,0.5947,42050.0,42044.0,0.63145377]
[1641879257911,0.5947,42050.0,42046.0,0.00028907]
[1641879258309,0.9447,42051.0,42046.0,0.00028907]
[1641879258710,0.9447,42051.0,42046.0,0.00078261]
[1641879259011,1.12536335,42053.0,42050.0,0.25869442]
[1641879259012,0.00716335,42053.0,42050.0,0.25869442]
[1641879259509,0.00716335,42053.0,42050.0,0.59936475]
[1641879259710,0.00716335,42053.0,42050.0,0.49781142]
[1641879260111,0.00716335,42053.0,42050.0,0.54781142]
[1641879260310,0.41661962,42055.0,42051.0,0.0054743]
[1641879260569,0.41661962,42055.0,42050.0,0.54781142]
[1641879260966,0.41733926,42055.0,42050.0,0.54781142]
[1641879261167,0.41661964,42055.0,42050.0,0.54781142]
[1641879261768,0.41661964,42055.0,42052.0,0.00514394]
[1641879262066,0.41661964,42055.0,42051.0,0.00768146]
[1641879262269,0.41661963,42055.0,42050.0,0.20869442]
[1641879262467,0.41661963,42055.0,42052.0,0.002]
[1641879263172,0.41661963,42055.0,42052.0,0.00228668]
[1641879263567,0.41661963,42055.0,42052.0,0.00028668]
[1641879263568,0.4159,42055.0,42052.0,0.00028668]
[1641879264409,0.4159,42055.0,42052.0,0.00128668]
[1641879265612,0.4159,42055.0,42052.0,0.00028668]
[1641879266615,0.4159,42055.0,42054.0,0.00129241]
[1641879268056,0.4159,42055.0,42054.0,0.00157829]
[1641879268459,0.4159,42055.0,42054.0,0.00557829]
[1641879269657,0.4159,42055.0,42054.0,0.00157829]
[1641879270357,0.4159,42055.0,42054.0,0.00557829]
[1641879271711,0.4159,42055.0,42054.0,0.00157829]
[1641879271907,0.00143924,42057.0,42054.0,0.00157829]
[1641879272509,0.00143924,42057.0,42054.0,0.00357829]
[1641879273711,0.00143924,42057.0,42054.0,0.00157829]
[1641879274509,0.00143924,42057.0,42054.0,0.00457829]
[1641879275009,0.00143924,42057.0,42054.0,0.24457829]
[1641879275465,0.00143924,42057.0,42054.0,0.29457829]
[1641879275664,0.00143924,42057.0,42055.0,0.33207657]
[1641879276466,0.00143924,42057.0,42055.0,0.33507657]
[1641879277470,0.42466616,42067.0,42058.0,0.30963164]
[1641879277670,0.76069338,42066.0,42058.0,0.30963164]
[1641879277869,0.76069338,42066.0,42058.0,0.35963164]
[1641879278070,0.059442,42065.0,42058.0,0.35963164]
[1641879278470,0.059442,42065.0,42058.0,0.62667254]
[1641879279071,0.059442,42065.0,42058.0,0.35963164]
[1641879283169,0.059442,42065.0,42060.0,0.00028349]
[1641879284567,0.371681,42064.0,42060.0,0.00028349]
[1641879284768,0.37884219,42064.0,42060.0,0.00028349]
[1641879285369,0.00716119,42064.0,42060.0,0.00028349]
[1641879286170,0.371681,42063.0,42060.0,0.00028349]
[1641879286709,0.00121304,42062.0,42060.0,0.00028349]
[1641879286907,0.35794,42061.0,42060.0,0.00028349]
[1641879287106,0.70968136,42061.0,42060.0,0.00028349]
[1641879288107,0.05945,42059.0,42054.0,0.2402827]
[1641879289608,0.36715449,42059.0,42054.0,0.2402827]
[1641879290310,0.05945,42059.0,42054.0,0.2402827]
[1641879291057,0.371681,42058.0,42054.0,0.2402827]
[1641879291259,0.06661187,42059.0,42054.0,0.2402827]
[1641879292066,0.43928424,42058.0,42054.0,0.2402827]
[1641879292661,0.06661187,42059.0,42054.0,0.2402827]
[1641879293065,0.06661187,42059.0,42056.0,0.00028509]
[1641879298062,0.06661187,42059.0,42054.0,0.24028429]
[1641879298663,0.00716187,42059.0,42054.0,0.24028429]
[1641879300164,0.00716187,42059.0,42054.0,0.29028429]
[1641879303111,0.00716187,42059.0,42056.0,0.00028509]
[1641879303914,0.00716187,42059.0,42056.0,0.00759216]
[1641879304114,0.00716187,42059.0,42056.0,0.00028509]
[1641879304514,0.00716187,42059.0,42057.0,0.32492997]
[1641879305214,0.00716187,42059.0,42057.0,0.27492997]
[1641879307059,0.00716187,42059.0,42056.0,0.0056293]
[1641879307260,0.00716187,42059.0,42056.0,0.00028509]
[1641879307760,0.00716187,42059.0,42056.0,0.00702882]
[1641879307961,0.00716187,42059.0,42058.0,0.00028429]
[1641879313059,0.00716187,42059.0,42055.0,0.00554446]
[1641879313259,0.00716187,42059.0,42056.0,0.00740292]
[1641879313458,0.00716187,42059.0,42054.0,0.29028429]
[1641879313459,0.00716187,42059.0,42055.0,0.00671342]
[1641879313659,0.00716187,42059.0,42056.0,0.00599557]
[1641879313859,0.00716187,42059.0,42055.0,0.00620292]
[1641879314059,0.00716187,42059.0,42056.0,0.00765647]
[1641879314260,0.00716187,42059.0,42055.0,0.00727608]
[1641879314462,0.00716187,42059.0,42054.0,0.29028429]
[1641879314660,0.00716187,42059.0,42055.0,0.00777101]
[1641879314863,0.00716187,42059.0,42056.0,0.00717815]
[1641879315261,0.00716187,42059.0,42055.0,0.00541516]
[1641879315464,0.00716187,42059.0,42056.0,0.0065668]
[1641879315662,0.00716187,42059.0,42055.0,0.00548229]
[1641879315961,0.00716187,42059.0,42055.0,0.00530974]
[1641879317012,0.00716187,42059.0,42055.0,0.00563317]
[1641879317212,0.00716187,42059.0,42056.0,0.00546826]
[1641879317410,0.00716187,42059.0,42057.0,0.0055863]
[1641879317612,0.00716187,42059.0,42058.0,0.0052212]
[1641879317812,0.00716187,42059.0,42054.0,0.29028429]
[1641879318015,0.00716187,42059.0,42057.0,0.00028469]
[1641879318912,0.595501,42061.0,42057.0,0.00028469]
[1641879319312,0.595501,42061.0,42060.0,0.31269447]
[1641879320757,0.59517781,42061.0,42060.0,0.31269447]
[1641879321158,0.9756089,42063.0,42060.0,0.31269447]
[1641879321358,0.8402089,42063.0,42060.0,0.31269447]
[1641879321760,0.6902089,42063.0,42060.0,0.31269447]
[1641879321962,0.6902089,42063.0,42060.0,0.36269447]
[1641879322161,0.6902089,42063.0,42061.0,0.0473]
[1641879322761,0.6902089,42063.0,42062.0,0.32549106]
[1641879322962,0.6902089,42063.0,42062.0,0.37279106]
[1641879323165,0.6902089,42067.0,42062.0,0.42307376]
[1641879323763,0.7496449,42067.0,42062.0,0.42307376]
[1641879323963,0.7496449,42067.0,42062.0,0.37307376]
[1641879324224,0.159436,42067.0,42062.0,0.0475827]
[1641879324618,0.059436,42067.0,42062.0,0.0485827]
[1641879324919,0.3015,42068.0,42062.0,0.0485827]
[1641879325921,0.3015,42068.0,42062.0,0.0475827]
[1641879326121,0.3015,42068.0,42062.0,0.29560433]
[1641879326320,0.50140584,42068.0,42062.0,0.29560433]
[1641879326521,0.56084084,42068.0,42062.0,0.0495827]
[1641879326722,0.56800077,42068.0,42062.0,0.0495827]
[1641879327823,0.56800077,42068.0,42062.0,0.34244643]
[1641879328059,0.56800077,42068.0,42064.0,0.0002819]
[1641879328462,0.56084084,42068.0,42067.0,0.28827497]
[1641879328659,0.56084084,42068.0,42067.0,0.29503644]
[1641879328660,0.19990584,42068.0,42067.0,0.29503644]
[1641879329060,0.19990584,42068.0,42067.0,0.28827497]
[1641879329861,0.9886,42070.0,42067.0,0.28827497]
[1641879332109,0.9886,42070.0,42067.0,0.29438666]
[1641879332310,0.9886,42070.0,42068.0,0.00689595]
[1641879332509,0.9886,42070.0,42069.0,0.00544424]
[1641879332710,0.9886,42070.0,42068.0,0.00778621]
[1641879332910,0.9836,42070.0,42069.0,0.00659468]
[1641879333210,0.9836,42070.0,42069.0,0.00027991]
[1641879333618,0.9836,42070.0,42069.0,0.00543943]
[1641879333812,0.9836,42070.0,42069.0,0.00027991]
[1641879334018,0.9836,42070.0,42069.0,0.0078933]
[1641879334313,0.9836,42070.0,42069.0,0.00027991]
[1641879334512,0.9836,42070.0,42069.0,0.00780767]
[1641879334712,0.9836,42070.0,42069.0,0.00327991]
[1641879334912,0.9836,42070.0,42069.0,0.01091216]
[1641879335113,0.9836,42070.0,42069.0,0.00327991]
[1641879335313,0.9836,42070.0,42069.0,0.01016822]
[1641879335568,0.9836,42070.0,42069.0,0.00327991]
[1641879335968,0.9836,42070.0,42069.0,0.00027991]
[1641879336367,0.9836,42070.0,42069.0,0.23527991]
[1641879336667,0.059423,42076.0,42070.0,1.25]
[1641879336872,0.79701523,42078.0,42071.0,0.6054368]
[1641879337068,0.79701523,42078.0,42077.0,1.49843763]
[1641879337367,0.79701523,42078.0,42077.0,1.76811314]
[1641879337368,0.07360947,42078.0,42077.0,1.76811314]
[1641879337667,0.59839269,42083.0,42079.0,0.00129863]
[1641879337866,0.59839269,42083.0,42080.0,0.0473]
[1641879338066,0.59839269,42083.0,42082.0,0.59226388]
[1641879338266,0.59839269,42083.0,42082.0,0.68956388]
[1641879338466,0.6902089,42085.0,42082.0,0.88956388]
[1641879338671,1.1777,42093.0,42084.0,0.98525117]
[1641879338966,0.2969,42095.0,42088.0,0.59227937]
[1641879339225,0.2969,42095.0,42088.0,0.68957937]
[1641879339813,0.2969,42095.0,42089.0,0.35546096]
[1641879340015,0.2969,42095.0,42094.0,0.30553318]
[1641879340218,0.059394,42098.0,42094.0,0.0473]
[1641879342117,0.009535,42099.0,42094.0,0.0473]
[1641879342962,0.004535,42099.0,42094.0,0.0473]
[1641879343964,0.059388,42101.0,42094.0,0.0473]
[1641879344165,0.32520593,42101.0,42094.0,0.0473]
[1641879344364,0.059388,42101.0,42094.0,0.0473]
[1641879345866,0.059388,42101.0,42094.0,0.2873]
[1641879346271,0.059388,42101.0,42094.0,0.3373]
[1641879346914,0.371681,42100.0,42094.0,0.3373]
[1641879348112,0.059388,42101.0,42094.0,0.3373]
[1641879350317,0.404492,42102.0,42094.0,0.3373]
[1641879350318,0.285709,42102.0,42094.0,0.2873]
[1641879350571,0.285709,42102.0,42094.0,0.24]
[1641879351173,0.53171024,42103.0,42094.0,0.24]
[1641879351574,0.371681,42102.0,42094.0,0.24]
[1641879351969,0.3788365,42102.0,42094.0,0.24]
[1641879352571,2.31538721,42096.0,42094.0,0.24]
[1641879352772,2.58186974,42096.0,42094.0,0.24]
[1641879354811,0.26648253,42096.0,42094.0,0.24]
[1641879356215,0.38666113,42101.0,42094.0,0.24]
[1641879356414,0.0593968,42101.0,42094.0,0.24]
[1641879357515,0.28764598,42099.0,42094.0,0.24]
[1641879360173,0.28764598,42099.0,42094.0,0.235]
[1641879361170,0.31243649,42098.0,42094.0,0.235]
[1641879361570,0.64964518,42099.0,42094.0,0.235]
[1641879362710,0.28264598,42099.0,42094.0,0.235]
[1641879366365,0.0071555,42102.0,42094.0,0.235]
[1641879368569,0.0021555,42102.0,42094.0,0.235]
[1641879372120,0.4239,42109.0,42100.0,0.35]
[1641879372323,0.59973006,42113.0,42108.0,0.00120651]
[1641879372525,0.59973006,42113.0,42112.0,0.00123585]
[1641879372720,0.6902089,42114.0,42112.0,0.00123585]
[1641879372966,0.371681,42113.0,42112.0,0.00123585]
[1641879373265,1.02025216,42114.0,42111.0,0.0473]
[1641879373466,0.6902089,42114.0,42113.0,0.00121166]
[1641879373666,0.4159,42122.0,42113.0,0.00121166]
[1641879373867,0.371681,42121.0,42113.0,0.00121166]
[1641879374066,0.4159,42122.0,42113.0,0.00121166]
[1641879374267,0.34078121,42120.0,42113.0,0.00121166]
[1641879374466,0.30533975,42115.0,42113.0,0.00121166]
[1641879374666,0.30533975,42115.0,42113.0,0.00221166]
[1641879375074,0.44756336,42119.0,42113.0,0.00221166]
[1641879375268,0.0014888,42121.0,42113.0,0.00221166]
[1641879375867,0.0014888,42121.0,42113.0,0.00121166]
[1641879376268,0.316907,42120.0,42113.0,0.00121166]
[1641879376468,0.316907,42120.0,42113.0,0.24121166]
[1641879376719,0.316907,42120.0,42113.0,0.24221166]
[1641879377113,0.316907,42120.0,42114.0,0.33794564]
[1641879378113,0.0014888,42121.0,42114.0,0.33794564]
[1641879378715,0.0014888,42121.0,42114.0,0.33894564]
[1641879379416,0.0014888,42121.0,42114.0,0.001]
[1641879380017,0.0014888,42121.0,42118.0,0.00125654]
[1641879380219,0.00148688,42120.0,42118.0,0.00125654]
[1641879380666,0.00148688,42120.0,42118.0,0.00725654]
[1641879382069,0.00148688,42120.0,42118.0,0.00125654]
[1641879382469,0.00148688,42120.0,42119.0,0.35]
[1641879382670,0.00148688,42120.0,42119.0,0.9699516]
[1641879382875,0.00148688,42120.0,42119.0,0.668981]
[1641879383970,0.00148688,42120.0,42119.0,0.9458109]
[1641879384220,0.00148688,42120.0,42119.0,1.0051519]
[1641879384816,0.00148688,42120.0,42119.0,1.38127513]
[1641879385016,0.00148688,42120.0,42119.0,1.0121519]
[1641879385217,0.20148688,42126.0,42119.0,1.0121519]
[1641879385423,0.20148688,42126.0,42125.0,0.0012667]
[1641879386719,0.20148688,42126.0,42125.0,0.30783216]
[1641879386916,0.20148688,42126.0,42125.0,0.34482491]
[1641879387117,0.20148688,42126.0,42125.0,0.76650591]
[1641879387517,0.20148688,42126.0,42125.0,1.52233184]
[1641879387717,0.20148688,42126.0,42125.0,1.77053395]
[1641879387979,0.20148688,42126.0,42125.0,1.76380975]
[1641879388379,0.10109195,42126.0,42125.0,2.11380975]
[1641879388578,0.008,42129.0,42127.0,0.2]
[1641879388779,0.008,42129.0,42128.0,0.571681]
[1641879389077,0.008,42129.0,42128.0,0.618981]
[1641879389579,0.3509706,42138.0,42132.0,0.2371976]
[1641879389779,0.3509706,42141.0,42133.0,0.0473]
[1641879390079,0.1,42141.0,42133.0,0.0473]
[1641879390277,0.3939,42142.0,42133.0,0.0473]
[1641879390779,0.3939,42142.0,42133.0,0.0493]
[1641879391480,0.3939,42142.0,42138.0,0.29088375]
[1641879391719,0.1,42142.0,42133.0,0.0493]
[1641879391913,1.33411596,42143.0,42133.0,0.0493]
[1641879392115,1.33411596,42143.0,42133.0,0.106621]
[1641879392314,0.2,42134.0,42133.0,0.106621]
[1641879392513,0.2,42134.0,42133.0,1.03051851]
[1641879392715,0.00078442,42146.0,42135.0,0.2]
[1641879392916,0.00078442,42146.0,42144.0,0.00124162]
[1641879393115,0.00078442,42146.0,42144.0,0.12490162]
[1641879393313,0.00078442,42146.0,42144.0,0.12366]
[1641879393612,0.00078442,42146.0,42145.0,0.26241837]
[1641879393814,0.00078442,42146.0,42144.0,0.03339]
[1641879394113,0.00078442,42146.0,42144.0,0.08339]
[1641879394312,0.00078442,42146.0,42145.0,0.2]
[1641879394513,0.00078442,42146.0,42145.0,0.25]
[1641879394713,0.00078442,42146.0,42145.0,0.673981]
[1641879394912,0.00078442,42146.0,42145.0,0.473981]
[1641879395566,0.00078442,42146.0,42145.0,0.79322271]
[1641879395967,0.00078442,42146.0,42145.0,0.78822271]
[1641879396167,0.00078442,42146.0,42145.0,0.98822271]
[1641879396369,0.00078442,42146.0,42145.0,1.08822271]
[1641879396569,0.008,42149.0,42147.0,0.2]
[1641879396768,0.34797964,42161.0,42148.0,1.04152243]
[1641879397069,0.34797964,42166.0,42150.0,0.20677421]
[1641879397268,0.34797964,42166.0,42155.0,0.00128556]
[1641879397468,0.34797964,42166.0,42158.0,0.47889306]
[1641879397668,0.94176691,42167.0,42157.0,0.2]
[1641879397869,1.17883359,42167.0,42157.0,0.25]
[1641879398169,1.17883359,42167.0,42157.0,0.05]
[1641879398371,0.27367788,42165.0,42157.0,0.2665423]
[1641879398569,0.94176691,42167.0,42157.0,0.5165423]
[1641879398769,1.17894603,42167.0,42157.0,0.05]
[1641879398970,0.2,42153.0,42151.0,0.0473]
[1641879399227,0.2,42157.0,42152.0,0.371681]
[1641879399420,0.2,42157.0,42152.0,0.0473]
[1641879399821,0.2,42157.0,42153.0,0.3231909]
[1641879400121,0.32692302,42160.0,42153.0,0.3231909]
[1641879400321,0.32692302,42160.0,42154.0,0.2]
[1641879400522,0.32692302,42160.0,42155.0,0.00127617]
[1641879400822,0.34797964,42166.0,42156.0,0.14249739]
[1641879401024,0.63655674,42166.0,42157.0,0.05]
[1641879401223,0.34797964,42166.0,42157.0,0.0973]
[1641879401623,0.25202713,42161.0,42157.0,0.0973]
[1641879402022,0.25202713,42161.0,42157.0,0.05]
[1641879402966,0.25202713,42161.0,42157.0,0.054]
[1641879403167,0.25202713,42161.0,42157.0,0.004]
[1641879403768,0.66340137,42161.0,42157.0,0.004]
[1641879403969,0.371681,42160.0,42152.0,0.0473]
[1641879404171,0.371681,42159.0,42146.0,0.00120204]
[1641879404368,0.00129149,42159.0,42144.0,0.5]
[1641879404570,0.10129149,42159.0,42144.0,0.5]
[1641879404768,0.26774799,42148.0,42146.0,0.32707327]
[1641879404968,0.55731611,42159.0,42147.0,0.371681]
[1641879405167,0.55731611,42159.0,42147.0,0.2]
[1641879405569,0.55731611,42159.0,42146.0,0.32707327]
[1641879405969,0.81031285,42159.0,42146.0,0.32707327]
[1641879406173,0.75131285,42159.0,42146.0,0.32707327]
[1641879406371,0.75131285,42159.0,42146.0,0.52707327]
[1641879406724,0.75131285,42159.0,42146.0,1.10575014]
[1641879406915,0.82731285,42159.0,42146.0,1.10575014]
[1641879407316,0.82731285,42159.0,42146.0,0.44]
[1641879407916,0.82731285,42159.0,42146.0,0.24]
[1641879408116,0.75131285,42159.0,42148.0,0.00026667]
[1641879408315,0.35428823,42159.0,42148.0,0.24916139]
[1641879408518,0.25428823,42159.0,42149.0,0.2]
[1641879408720,0.35428823,42159.0,42149.0,0.2]
[1641879408918,0.41728823,42159.0,42149.0,0.2]
[1641879409118,0.41728823,42159.0,42148.0,0.00026667]
[1641879409320,0.45701987,42158.0,42148.0,0.00026667]
[1641879409519,0.81798588,42149.0,42148.0,0.00026667]
[1641879409720,0.35794,42149.0,42148.0,0.00026667]
[1641879410020,0.15444625,42157.0,42148.0,0.00026667]
[1641879410218,0.371681,42156.0,42148.0,0.00026667]
[1641879410469,0.26404215,42149.0,42148.0,0.00026667]
[1641879412871,0.28104215,42149.0,42148.0,0.00026667]
[1641879413272,0.28104215,42149.0,42146.0,0.24026667]
[1641879413974,0.26404215,42149.0,42146.0,0.24026667]